Workbook

Sheet Sheet1
C2: Row | D2: Row | E2: Row | F2: Row | G2: Row | H2: Row
C3: 100 | D3: 200 | E3: 800 | F3: 1000 | G3: 2000 | H3: 2500 | K3: Time Start | L3: 18:09:29 | O3: row input | P3: 2500 | S3: =result -> 9572.205514 | T3: =C3 -> 100 | U3: =D3 -> 200 | V3: =E3 -> 800 | W3: =F3 -> 1000 | X3: =G3 -> 2000 | Y3: =H3 -> 2500
A4: Column | B4: 100 | C4: 902.6065163 | D4: 602.6065163 | E4: -5397.393484 | F4: -8997.393484 | G4: -38997.39348 | H4: -61497.39348 | K4: Time End | L4: 18:09:31 | O4: col input | P4: 1400 | S4: 100 | T4: 902.6065163 | U4: 602.6065163 | V4: -5397.393484 | W4: -8997.393484 | X4: -38997.39348 | Y4: -61497.39348
A5: Column | B5: 200 | C5: 1955.213033 | D5: 1805.213033 | E5: -1194.786967 | F5: -2994.786967 | G5: -17994.78697 | H5: -29244.78697 | K5: Seconds | L5: =(Time_End-Time_Start)*60*60*24 -> 2 | O5: result | P5: =-row_input/col_input*row_input+col_input*SUM(D26:D219827)/E10000 -> 9572.205514 | S5: 200 | T5: 1955.213033 | U5: 1805.213033 | V5: -1194.786967 | W5: -2994.786967 | X5: -17994.78697 | Y5: -29244.78697
A6: Column | B6: 300 | C6: 2974.486216 | D6: 2874.486216 | E6: 874.4862155 | F6: -325.5137845 | G6: -10325.51378 | H6: -17825.51378 | S6: 300 | T6: 2974.486216 | U6: 2874.486216 | V6: 874.4862155 | W6: -325.5137845 | X6: -10325.51378 | Y6: -17825.51378
A7: Column | B7: 400 | C7: 3985.426065 | D7: 3910.426065 | E7: 2410.426065 | F7: 1510.426065 | G7: -5989.573935 | H7: -11614.57393 | K7: Array Method | L7: TRUE | S7: 400 | T7: 3985.426065 | U7: 3910.426065 | V7: 2410.426065 | W7: 1510.426065 | X7: -5989.573935 | Y7: -11614.57393
A8: Column | B8: 500 | C8: 4993.032581 | D8: 4933.032581 | E8: 3733.032581 | F8: 3013.032581 | G8: -2986.967419 | H8: -7486.967419 | K8: Screen Updating | L8: FALSE | S8: 500 | T8: 4993.032581 | U8: 4933.032581 | V8: 3733.032581 | W8: 3013.032581 | X8: -2986.967419 | Y8: -7486.967419
A9: Column | B9: 600 | C9: 5998.972431 | D9: 5948.972431 | E9: 4948.972431 | F9: 4348.972431 | G9: -651.0275689 | H9: -4401.027569 | K9: Manual Option | L9: TRUE | S9: 600 | T9: 5998.972431 | U9: 5948.972431 | V9: 4948.972431 | W9: 4348.972431 | X9: -651.0275689 | Y9: -4401.027569
A10: Column | B10: 700 | C10: 7003.9599 | D10: 6961.102757 | E10: 6103.9599 | F10: 5589.674185 | G10: 1303.9599 | H10: -1910.325815 | S10: 700 | T10: 7003.9599 | U10: 6961.102757 | V10: 6103.9599 | W10: 5589.674185 | X10: 1303.9599 | Y10: -1910.325815
A11: Column | B11: 800 | C11: 8008.35213 | D11: 7970.85213 | E11: 7220.85213 | F11: 6770.85213 | G11: 3020.85213 | H11: 208.3521303 | S11: 800 | T11: 8008.35213 | U11: 7970.85213 | V11: 7220.85213 | W11: 6770.85213 | X11: 3020.85213 | Y11: 208.3521303
A12: Column | B12: 900 | C12: 9012.347536 | D12: 8979.014202 | E12: 8312.347536 | F12: 7912.347536 | G12: 4579.014202 | H12: 2079.014202 | S12: 900 | T12: 9012.347536 | U12: 8979.014202 | V12: 8312.347536 | W12: 7912.347536 | X12: 4579.014202 | Y12: 2079.014202
A13: Column | B13: 1000 | C13: 10016.06516 | D13: 9986.065163 | E13: 9386.065163 | F13: 9026.065163 | G13: 6026.065163 | H13: 3776.065163 | S13: 1000 | T13: 10016.06516 | U13: 9986.065163 | V13: 9386.065163 | W13: 9026.065163 | X13: 6026.065163 | Y13: 3776.065163
A14: Column | B14: 1100 | C14: 11019.58077 | D14: 10992.30804 | E14: 10446.8535 | F14: 10119.58077 | G14: 7392.308043 | H14: 5346.853497 | S14: 1100 | T14: 11019.58077 | U14: 10992.30804 | V14: 10446.8535 | W14: 10119.58077 | X14: 7392.308043 | Y14: 5346.853497
A15: Column | B15: 1200 | C15: 12022.94486 | D15: 11997.94486 | E15: 11497.94486 | F15: 11197.94486 | G15: 8697.944862 | H15: 6822.944862 | S15: 1200 | T15: 12022.94486 | U15: 11997.94486 | V15: 11497.94486 | W15: 11197.94486 | X15: 8697.944862 | Y15: 6822.944862
A16: Column | B16: 1300 | C16: 13026.1924 | D16: 13003.11548 | E16: 12541.57702 | F16: 12264.65394 | G16: 9956.961635 | H16: 8226.192404 | K16: R | L16: 20 | S16: 1300 | T16: 13026.1924 | U16: 13003.11548 | V16: 12541.57702 | W16: 12264.65394 | X16: 9956.961635 | Y16: 8226.192404
A17: Column | B17: 1400 | C17: 14029.34837 | D17: 14007.9198 | E17: 13579.34837 | F17: 13322.20551 | G17: 11179.34837 | H17: 9572.205514 | K17: G | L17: 1000 | S17: 1400 | T17: 14029.34837 | U17: 14007.9198 | V17: 13579.34837 | W17: 13322.20551 | X17: 11179.34837 | Y17: 9572.205514
K18: B | L18: 4000
K20: Colour Function | L20: =rgb_colour(100) -> 100
B26: 1 | C26: 500 | D26: =C26*B26 -> 500 | E26: =D26*C26 -> 250000 | F26: 125000000 | G26: 31250000000000 | H26: 3.90625e+21 | I26: 1.220703125e+35 | J26: =I26/H26 -> 31250000000000 | K26: =J26/I26 -> 2.56e-22 | L26: =I26/G26 -> 3.90625e+21 | M26: =L26/E26 -> 1.5625e+16
B27: 2 | C27: 500 | D27: =C27*B27 -> 1000 | E27: =D27*C27 -> 500000 | F27: =E27*D27 -> 500000000 | G27: =F27*E27 -> 250000000000000 | H27: =G27*F27 -> 1.25e+23 | I27: =H27*G27 -> 3.125e+37 | J27: =I27/H27 -> 250000000000000 | K27: 8e-24 | L27: =I27/G27 -> 1.25e+23 | M27: =L27/E27 -> 2.5e+17
B28: 3 | C28: 500 | D28: 1500 | E28: 750000 | F28: 1125000000 | G28: 843750000000000 | H28: 9.4921875e+23 | I28: 8.009033203e+38 | J28: =I28/H28 -> 843750000000000 | K28: 1.053497942e-24 | L28: 9.4921875e+23 | M28: 1.265625e+18
B29: 4 | C29: 500 | D29: 2000 | E29: 1000000 | F29: 2000000000 | G29: 2000000000000000 | H29: 4e+24 | I29: 8e+39 | J29: =I29/H29 -> 2000000000000000 | K29: 2.5e-25 | L29: 4e+24 | M29: 4e+18
B30: 5 | C30: 500 | D30: 2500 | E30: 1250000 | F30: 3125000000 | G30: 3906250000000000 | H30: 1.220703125e+25 | I30: 4.768371582e+40 | J30: =I30/H30 -> 3.90625e+15 | K30: 8.192e-26 | L30: 1.220703125e+25 | M30: 9.765625e+18
B31: 6 | C31: 500 | D31: 3000 | E31: 1500000 | F31: 4500000000 | G31: 6750000000000000 | H31: 3.0375e+25 | I31: 2.0503125e+41 | J31: =I31/H31 -> 6750000000000000 | K31: 3.29218107e-26 | L31: 3.0375e+25 | M31: 2.025e+19
B32: 7 | C32: 500 | D32: 3500 | E32: 1750000 | F32: 6125000000 | G32: 1.071875e+16 | H32: 6.565234375e+25 | I32: 7.037110596e+41 | J32: =I32/H32 -> 1.071875e+16 | K32: 1.523174868e-26 | L32: 6.565234375e+25 | M32: 3.7515625e+19
B33: 8 | C33: 500 | D33: 4000 | E33: 2000000 | F33: 8000000000 | G33: 1.6e+16 | H33: 1.28e+26 | I33: 2.048e+42 | J33: =I33/H33 -> 1.6e+16 | K33: 7.8125e-27 | L33: 1.28e+26 | M33: 6.4e+19
B34: 9 | C34: 500 | D34: 4500 | E34: 2250000 | F34: 10125000000 | G34: 2.278125e+16 | H34: 2.306601563e+26 | I34: 5.254726685e+42 | J34: =I34/H34 -> 2.278125e+16 | K34: 4.335382479e-27 | L34: 2.306601563e+26 | M34: 1.02515625e+20
B35: 10 | C35: 500 | D35: 5000 | E35: 2500000 | F35: 12500000000 | G35: 3.125e+16 | H35: 3.90625e+26 | I35: 1.220703125e+43 | J35: =I35/H35 -> 3.125e+16 | K35: 2.56e-27 | L35: 3.90625e+26 | M35: 1.5625e+20
B36: 11 | C36: 500 | D36: 5500 | E36: 2750000 | F36: 15125000000 | G36: 4.159375e+16 | H36: 6.291054688e+26 | I36: 2.616685559e+43 | J36: =I36/H36 -> 4.159375e+16 | K36: 1.589558587e-27 | L36: 6.291054688e+26 | M36: 2.28765625e+20
B37: 12 | C37: 500 | D37: 6000 | E37: 3000000 | F37: 18000000000 | G37: 5.4e+16 | H37: 9.72e+26 | I37: 5.2488e+43 | J37: =I37/H37 -> 5.4e+16 | K37: 1.028806584e-27 | L37: 9.72e+26 | M37: 3.24e+20
B38: 13 | C38: 500 | D38: 6500 | E38: 3250000 | F38: 21125000000 | G38: 6.865625e+16 | H38: 1.450363281e+27 | I38: 9.957650403e+43 | J38: =I38/H38 -> 6.865625e+16 | K38: 6.894824303e-28 | L38: 1.450363281e+27 | M38: 4.46265625e+20
B39: 14 | C39: 500 | D39: 7000 | E39: 3500000 | F39: 24500000000 | G39: 8.575e+16 | H39: 2.100875e+27 | I39: 1.801500312e+44 | J39: =I39/H39 -> 8.575e+16 | K39: 4.759921461e-28 | L39: 2.100875e+27 | M39: 6.0025e+20
B40: 15 | C40: 500 | D40: 7500 | E40: 3750000 | F40: 28125000000 | G40: 1.0546875e+17 | H40: 2.966308594e+27 | I40: 3.128528595e+44 | J40: =I40/H40 -> 1.0546875e+17 | K40: 3.371193416e-28 | L40: 2.966308594e+27 | M40: 7.91015625e+20
B41: 16 | C41: 500 | D41: 8000 | E41: 4000000 | F41: 32000000000 | G41: 1.28e+17 | H41: 4.096e+27 | I41: 5.24288e+44 | J41: =I41/H41 -> 1.28e+17 | K41: 2.44140625e-28 | L41: 4.096e+27 | M41: 1.024e+21
B42: 17 | C42: 500 | D42: 8500 | E42: 4250000 | F42: 36125000000 | G42: 1.5353125e+17 | H42: 5.546316406e+27 | I42: 8.515328907e+44 | J42: =I42/H42 -> 1.5353125e+17 | K42: 1.802998471e-28 | L42: 5.546316406e+27 | M42: 1.305015625e+21
B43: 18 | C43: 500 | D43: 9000 | E43: 4500000 | F43: 40500000000 | G43: 1.8225e+17 | H43: 7.381125e+27 | I43: 1.345210031e+45 | J43: =I43/H43 -> 1.8225e+17 | K43: 1.354807025e-28 | L43: 7.381125e+27 | M43: 1.64025e+21
B44: 19 | C44: 500 | D44: 9500 | E44: 4750000 | F44: 45125000000 | G44: 2.1434375e+17 | H44: 9.672261719e+27 | I44: 2.073188848e+45 | J44: =I44/H44 -> 2.1434375e+17 | K44: 1.033884348e-28 | L44: 9.672261719e+27 | M44: 2.036265625e+21
B45: 20 | C45: 500 | D45: 10000 | E45: 5000000 | F45: 50000000000 | G45: 2.5e+17 | H45: 1.25e+28 | I45: 3.125e+45 | J45: =I45/H45 -> 2.5e+17 | K45: 8e-29 | L45: 1.25e+28 | M45: 2.5e+21
B46: 21 | C46: 500 | D46: 10500 | E46: 5250000 | F46: 55125000000 | G46: 2.8940625e+17 | H46: 1.595351953e+28 | I46: 4.617048262e+45 | J46: =I46/H46 -> 2.8940625e+17 | K46: 6.268209332e-29 | L46: 1.595351953e+28 | M46: 3.038765625e+21
B47: 22 | C47: 500 | D47: 11000 | E47: 5500000 | F47: 60500000000 | G47: 3.3275e+17 | H47: 2.0131375e+28 | I47: 6.698715031e+45 | J47: =I47/H47 -> 3.3275e+17 | K47: 4.967370584e-29 | L47: 2.0131375e+28 | M47: 3.66025e+21
B48: 23 | C48: 500 | D48: 11500 | E48: 5750000 | F48: 66125000000 | G48: 3.8021875e+17 | H48: 2.514196484e+28 | I48: 9.559446445e+45 | J48: =I48/H48 -> 3.8021875e+17 | K48: 3.977413882e-29 | L48: 2.514196484e+28 | M48: 4.372515625e+21
B49: 24 | C49: 500 | D49: 12000 | E49: 6000000 | F49: 72000000000 | G49: 4.32e+17 | H49: 3.1104e+28 | I49: 1.3436928e+46 | J49: =I49/H49 -> 4.32e+17 | K49: 3.215020576e-29 | L49: 3.1104e+28 | M49: 5.184e+21
B50: 25 | C50: 500 | D50: 12500 | E50: 6250000 | F50: 78125000000 | G50: 4.8828125e+17 | H50: 3.814697266e+28 | I50: 1.862645149e+46 | J50: =I50/H50 -> 4.8828125e+17 | K50: 2.62144e-29 | L50: 3.814697266e+28 | M50: 6.103515625e+21
B51: 26 | C51: 500 | D51: 13000 | E51: 6500000 | F51: 84500000000 | G51: 5.4925e+17 | H51: 4.6411625e+28 | I51: 2.549158503e+46 | J51: =I51/H51 -> 5.4925e+17 | K51: 2.154632595e-29 | L51: 4.6411625e+28 | M51: 7.14025e+21
B52: 27 | C52: 500 | D52: 13500 | E52: 6750000 | F52: 91125000000 | G52: 6.1509375e+17 | H52: 5.605041797e+28 | I52: 3.447626178e+46 | J52: =I52/H52 -> 6.1509375e+17 | K52: 1.784108016e-29 | L52: 5.605041797e+28 | M52: 8.303765625e+21
B53: 28 | C53: 500 | D53: 14000 | E53: 7000000 | F53: 98000000000 | G53: 6.86e+17 | H53: 6.7228e+28 | I53: 4.6118408e+46 | J53: =I53/H53 -> 6.86e+17 | K53: 1.487475457e-29 | L53: 6.7228e+28 | M53: 9.604e+21
B54: 29 | C54: 500 | D54: 14500 | E54: 7250000 | F54: 105125000000 | G54: 7.6215625e+17 | H54: 8.012167578e+28 | I54: 6.106523596e+46 | J54: =I54/H54 -> 7.6215625e+17 | K54: 1.248101703e-29 | L54: 8.012167578e+28 | M54: 1.105126562e+22
B55: 30 | C55: 500 | D55: 15000 | E55: 7500000 | F55: 112500000000 | G55: 8.4375e+17 | H55: 9.4921875e+28 | I55: 8.009033203e+46 | J55: =I55/H55 -> 8.4375e+17 | K55: 1.053497942e-29 | L55: 9.4921875e+28 | M55: 1.265625e+22
B56: 31 | C56: 500 | D56: 15500 | E56: 7750000 | F56: 120125000000 | G56: 9.3096875e+17 | H56: 1.118326211e+29 | I56: 1.041126755e+47 | J56: =I56/H56 -> 9.3096875e+17 | K56: 8.941934743e-30 | L56: 1.118326211e+29 | M56: 1.443001563e+22
B57: 32 | C57: 500 | D57: 16000 | E57: 8000000 | F57: 128000000000 | G57: 1.024e+18 | H57: 1.31072e+29 | I57: 1.34217728e+47 | J57: =I57/H57 -> 1.024e+18 | K57: 7.629394531e-30 | L57: 1.31072e+29 | M57: 1.6384e+22
B58: 33 | C58: 500 | D58: 16500 | E58: 8250000 | F58: 136125000000 | G58: 1.12303125e+18 | H58: 1.528726289e+29 | I58: 1.716807395e+47 | J58: =I58/H58 -> 1.12303125e+18 | K58: 6.541393362e-30 | L58: 1.528726289e+29 | M58: 1.853001562e+22
B59: 34 | C59: 500 | D59: 17000 | E59: 8500000 | F59: 144500000000 | G59: 1.22825e+18 | H59: 1.77482125e+29 | I59: 2.1799242e+47 | J59: =I59/H59 -> 1.22825e+18 | K59: 5.634370222e-30 | L59: 1.77482125e+29 | M59: 2.088025e+22
B60: 35 | C60: 500 | D60: 17500 | E60: 8750000 | F60: 153125000000 | G60: 1.33984375e+18 | H60: 2.051635742e+29 | I60: 2.748871326e+47 | J60: =I60/H60 -> 1.33984375e+18 | K60: 4.874159576e-30 | L60: 2.051635742e+29 | M60: 2.344726562e+22
B61: 36 | C61: 500 | D61: 18000 | E61: 9000000 | F61: 162000000000 | G61: 1.458e+18 | H61: 2.36196e+29 | I61: 3.44373768e+47 | J61: =I61/H61 -> 1.458e+18 | K61: 4.233771952e-30 | L61: 2.36196e+29 | M61: 2.6244e+22
B62: 37 | C62: 500 | D62: 18500 | E62: 9250000 | F62: 171125000000 | G62: 1.58290625e+18 | H62: 2.70874832e+29 | I62: 4.287694646e+47 | J62: =I62/H62 -> 1.58290625e+18 | K62: 3.691742022e-30 | L62: 2.70874832e+29 | M62: 2.928376563e+22
B63: 38 | C63: 500 | D63: 19000 | E63: 9500000 | F63: 180500000000 | G63: 1.71475e+18 | H63: 3.09512375e+29 | I63: 5.30736345e+47 | J63: =I63/H63 -> 1.71475e+18 | K63: 3.230888587e-30 | L63: 3.09512375e+29 | M63: 3.258025e+22
B64: 39 | C64: 500 | D64: 19500 | E64: 9750000 | F64: 190125000000 | G64: 1.85371875e+18 | H64: 3.524382773e+29 | I64: 6.533214429e+47 | J64: =I64/H64 -> 1.85371875e+18 | K64: 2.837376256e-30 | L64: 3.524382773e+29 | M64: 3.614751563e+22
B65: 40 | C65: 500 | D65: 20000 | E65: 10000000 | F65: 200000000000 | G65: 2e+18 | H65: 4e+29 | I65: 8e+47 | J65: =I65/H65 -> 2e+18 | K65: 2.5e-30 | L65: 4e+29 | M65: 4e+22
B66: 41 | C66: 500 | D66: 20500 | E66: 10250000 | F66: 210125000000 | G66: 2.15378125e+18 | H66: 4.525632852e+29 | I66: 9.74722318e+47 | J66: =I66/H66 -> 2.15378125e+18 | K66: 2.209635719e-30 | L66: 4.525632852e+29 | M66: 4.415251562e+22
B67: 42 | C67: 500 | D67: 21000 | E67: 10500000 | F67: 220500000000 | G67: 2.31525e+18 | H67: 5.10512625e+29 | I67: 1.181964355e+48 | J67: =I67/H67 -> 2.31525e+18 | K67: 1.958815416e-30 | L67: 5.10512625e+29 | M67: 4.862025e+22
B68: 43 | C68: 500 | D68: 21500 | E68: 10750000 | F68: 231125000000 | G68: 2.48459375e+18 | H68: 5.742517305e+29 | I68: 1.42678226e+48 | J68: =I68/H68 -> 2.48459375e+18 | K68: 1.741396581e-30 | L68: 5.742517305e+29 | M68: 5.341876562e+22
B69: 44 | C69: 500 | D69: 22000 | E69: 11000000 | F69: 242000000000 | G69: 2.662e+18 | H69: 6.44204e+29 | I69: 1.714871048e+48 | J69: =I69/H69 -> 2.662e+18 | K69: 1.552303308e-30 | L69: 6.44204e+29 | M69: 5.8564e+22
B70: 45 | C70: 500 | D70: 22500 | E70: 11250000 | F70: 253125000000 | G70: 2.84765625e+18 | H70: 7.208129883e+29 | I70: 2.052627611e+48 | J70: =I70/H70 -> 2.84765625e+18 | K70: 1.387322393e-30 | L70: 7.208129883e+29 | M70: 6.407226562e+22
B71: 46 | C71: 500 | D71: 23000 | E71: 11500000 | F71: 264500000000 | G71: 3.04175e+18 | H71: 8.04542875e+29 | I71: 2.44721829e+48 | J71: =I71/H71 -> 3.04175e+18 | K71: 1.242941838e-30 | L71: 8.04542875e+29 | M71: 6.996025e+22
B72: 47 | C72: 500 | D72: 23500 | E72: 11750000 | F72: 276125000000 | G72: 3.24446875e+18 | H72: 8.958789336e+29 | I72: 2.906651204e+48 | J72: =I72/H72 -> 3.24446875e+18 | K72: 1.116222251e-30 | L72: 8.958789336e+29 | M72: 7.624501562e+22
B73: 48 | C73: 500 | D73: 24000 | E73: 12000000 | F73: 288000000000 | G73: 3.456e+18 | H73: 9.95328e+29 | I73: 3.439853568e+48 | J73: =I73/H73 -> 3.456e+18 | K73: 1.00469393e-30 | L73: 9.95328e+29 | M73: 8.2944e+22
B74: 49 | C74: 500 | D74: 24500 | E74: 12250000 | F74: 300125000000 | G74: 3.67653125e+18 | H74: 1.103418941e+30 | I74: 4.05675422e+48 | J74: =I74/H74 -> 3.67653125e+18 | K74: 9.062740927e-31 | L74: 1.103418941e+30 | M74: 9.007501562e+22
B75: 50 | C75: 500 | D75: 25000 | E75: 12500000 | F75: 312500000000 | G75: 3.90625e+18 | H75: 1.220703125e+30 | I75: 4.768371582e+48 | J75: =I75/H75 -> 3.90625e+18 | K75: 8.192e-31 | L75: 1.220703125e+30 | M75: 9.765625e+22
B76: 51 | C76: 500 | D76: 25500 | E76: 12750000 | F76: 325125000000 | G76: 4.14534375e+18 | H76: 1.347754887e+30 | I76: 5.586907296e+48 | J76: =I76/H76 -> 4.14534375e+18 | K76: 7.419746794e-31 | L76: 1.347754887e+30 | M76: 1.057062656e+23
B77: 52 | C77: 500 | D77: 26000 | E77: 13000000 | F77: 338000000000 | G77: 4.394e+18 | H77: 1.485172e+30 | I77: 6.525845768e+48 | J77: =I77/H77 -> 4.394e+18 | K77: 6.733226859e-31 | L77: 1.485172e+30 | M77: 1.14244e+23
B78: 53 | C78: 500 | D78: 26500 | E78: 13250000 | F78: 351125000000 | G78: 4.65240625e+18 | H78: 1.633576145e+30 | I78: 7.600059865e+48 | J78: =I78/H78 -> 4.65240625e+18 | K78: 6.121538952e-31 | L78: 1.633576145e+30 | M78: 1.232887656e+23
B79: 54 | C79: 500 | D79: 27000 | E79: 13500000 | F79: 364500000000 | G79: 4.92075e+18 | H79: 1.793613375e+30 | I79: 8.825923015e+48 | J79: =I79/H79 -> 4.92075e+18 | K79: 5.57533755e-31 | L79: 1.793613375e+30 | M79: 1.3286025e+23
B80: 55 | C80: 500 | D80: 27500 | E80: 13750000 | F80: 378125000000 | G80: 5.19921875e+18 | H80: 1.96595459e+30 | I80: 1.022142797e+49 | J80: =I80/H80 -> 5.19921875e+18 | K80: 5.086587479e-31 | L80: 1.96595459e+30 | M80: 1.429785156e+23
B81: 56 | C81: 500 | D81: 28000 | E81: 14000000 | F81: 392000000000 | G81: 5.488e+18 | H81: 2.151296e+30 | I81: 1.180631245e+49 | J81: =I81/H81 -> 5.488e+18 | K81: 4.648360802e-31 | L81: 2.151296e+30 | M81: 1.53664e+23
B82: 57 | C82: 500 | D82: 28500 | E82: 14250000 | F82: 406125000000 | G82: 5.78728125e+18 | H82: 2.350359598e+30 | I82: 1.360219203e+49 | J82: =I82/H82 -> 5.78728125e+18 | K82: 4.254668098e-31 | L82: 2.350359598e+30 | M82: 1.649375156e+23
B83: 58 | C83: 500 | D83: 29000 | E83: 14500000 | F83: 420500000000 | G83: 6.09725e+18 | H83: 2.563893625e+30 | I83: 1.563270041e+49 | J83: =I83/H83 -> 6.09725e+18 | K83: 3.900317822e-31 | L83: 2.563893625e+30 | M83: 1.7682025e+23
B84: 59 | C84: 500 | D84: 29500 | E84: 14750000 | F84: 435125000000 | G84: 6.41809375e+18 | H84: 2.792673043e+30 | I84: 1.79236374e+49 | J84: =I84/H84 -> 6.41809375e+18 | K84: 3.580798699e-31 | L84: 2.792673043e+30 | M84: 1.893337656e+23
B85: 60 | C85: 500 | D85: 30000 | E85: 15000000 | F85: 450000000000 | G85: 6.75e+18 | H85: 3.0375e+30 | I85: 2.0503125e+49 | J85: =I85/H85 -> 6.75e+18 | K85: 3.29218107e-31 | L85: 3.0375e+30 | M85: 2.025e+23
B86: 61 | C86: 500 | D86: 30500 | E86: 15250000 | F86: 465125000000 | G86: 7.09315625e+18 | H86: 3.299204301e+30 | I86: 2.340177161e+49 | J86: =I86/H86 -> 7.09315625e+18 | K86: 3.031033876e-31 | L86: 3.299204301e+30 | M86: 2.163412656e+23
B87: 62 | C87: 500 | D87: 31000 | E87: 15500000 | F87: 480500000000 | G87: 7.44775e+18 | H87: 3.578643875e+30 | I87: 2.665284492e+49 | J87: =I87/H87 -> 7.44775e+18 | K87: 2.794354607e-31 | L87: 3.578643875e+30 | M87: 2.3088025e+23
B88: 63 | C88: 500 | D88: 31500 | E88: 15750000 | F88: 496125000000 | G88: 7.81396875e+18 | H88: 3.876705246e+30 | I88: 3.029245365e+49 | J88: =I88/H88 -> 7.81396875e+18 | K88: 2.579510013e-31 | L88: 3.876705246e+30 | M88: 2.461400156e+23
B89: 64 | C89: 500 | D89: 32000 | E89: 16000000 | F89: 512000000000 | G89: 8.192e+18 | H89: 4.194304e+30 | I89: 3.435973837e+49 | J89: =I89/H89 -> 8.192e+18 | K89: 2.384185791e-31 | L89: 4.194304e+30 | M89: 2.62144e+23
B90: 65 | C90: 500 | D90: 32500 | E90: 16250000 | F90: 528125000000 | G90: 8.58203125e+18 | H90: 4.532385254e+30 | I90: 3.889707189e+49 | J90: =I90/H90 -> 8.58203125e+18 | K90: 2.206343777e-31 | L90: 4.532385254e+30 | M90: 2.789160156e+23
B91: 66 | C91: 500 | D91: =C91*B91 -> 33000 | E91: =D91*C91 -> 16500000 | F91: =E91*D91 -> 544500000000 | G91: =F91*E91 -> 8.98425e+18 | H91: =G91*F91 -> 4.891924125e+30 | I91: =H91*G91 -> 4.395026932e+49 | J91: =I91/H91 -> 8.98425e+18 | K91: 2.044185426e-31 | L91: =I91/G91 -> 4.891924125e+30 | M91: =L91/E91 -> 2.9648025e+23
B92: 67 | C92: 500 | D92: 33500 | E92: 16750000 | F92: 561125000000 | G92: 9.39884375e+18 | H92: 5.273926199e+30 | I92: 4.95688083e+49 | J92: =I92/H92 -> 9.39884375e+18 | K92: 1.896120579e-31 | L92: 5.273926199e+30 | M92: 3.148612656e+23
B93: 68 | C93: 500 | D93: 34000 | E93: 17000000 | F93: 578000000000 | G93: 9.826e+18 | H93: 5.679428e+30 | I93: 5.580605953e+49 | J93: =I93/H93 -> 9.826e+18 | K93: 1.760740694e-31 | L93: 5.679428e+30 | M93: 3.34084e+23
B94: 69 | C94: 500 | D94: 34500 | E94: 17250000 | F94: 595125000000 | G94: 1.026590625e+19 | H94: 6.109497457e+30 | I94: 6.271952813e+49 | J94: =I94/H94 -> 1.026590625e+19 | K94: 1.636795836e-31 | L94: 6.109497457e+30 | M94: 3.541737656e+23
B95: 70 | C95: 500 | D95: 35000 | E95: 17500000 | F95: 612500000000 | G95: 1.071875e+19 | H95: 6.565234375e+30 | I95: 7.037110596e+49 | J95: =I95/H95 -> 1.071875e+19 | K95: 1.523174868e-31 | L95: 6.565234375e+30 | M95: 3.7515625e+23
B96: 71 | C96: 500 | D96: 35500 | E96: 17750000 | F96: 630125000000 | G96: 1.118471875e+19 | H96: 7.047770902e+30 | I96: 7.882733536e+49 | J96: =I96/H96 -> 1.118471875e+19 | K96: 1.418888346e-31 | L96: 7.047770902e+30 | M96: 3.970575156e+23
B97: 72 | C97: 500 | D97: 36000 | E97: 18000000 | F97: 648000000000 | G97: 1.1664e+19 | H97: 7.558272e+30 | I97: 8.815968461e+49 | J97: =I97/H97 -> 1.1664e+19 | K97: 1.323053735e-31 | L97: 7.558272e+30 | M97: 4.19904e+23
B98: 73 | C98: 500 | D98: 36500 | E98: 18250000 | F98: 666125000000 | G98: 1.215678125e+19 | H98: 8.09793591e+30 | I98: 9.844483544e+49 | J98: =I98/H98 -> 1.215678125e+19 | K98: 1.234882581e-31 | L98: 8.09793591e+30 | M98: 4.437225156e+23
B99: 74 | C99: 500 | D99: 37000 | E99: 18500000 | F99: 684500000000 | G99: 1.266325e+19 | H99: 8.667994625e+30 | I99: 1.097649829e+50 | J99: =I99/H99 -> 1.266325e+19 | K99: 1.153669382e-31 | L99: 8.667994625e+30 | M99: 4.6854025e+23
B100: 75 | C100: 500 | D100: 37500 | E100: 18750000 | F100: 703125000000 | G100: 1.318359375e+19 | H100: 9.269714355e+30 | I100: 1.222081482e+50 | J100: =I100/H100 -> 1.318359375e+19 | K100: 1.078781893e-31 | L100: 9.269714355e+30 | M100: 4.943847656e+23
B101: 76 | C101: 500 | D101: 38000 | E101: 19000000 | F101: 722000000000 | G101: 1.3718e+19 | H101: 9.904396e+30 | I101: 1.358685043e+50 | J101: =I101/H101 -> 1.3718e+19 | K101: 1.009652684e-31 | L101: 9.904396e+30 | M101: 5.21284e+23
B102: 77 | C102: 500 | D102: 38500 | E102: 19250000 | F102: 741125000000 | G102: 1.426665625e+19 | H102: 1.057337561e+31 | I102: 1.508467153e+50 | J102: =I102/H102 -> 1.426665625e+19 | K102: 9.45771754e-32 | L102: 1.057337561e+31 | M102: 5.492662656e+23
B103: 78 | C103: 500 | D103: 39000 | E103: 19500000 | F103: 760500000000 | G103: 1.482975e+19 | H103: 1.127802487e+31 | I103: 1.672502894e+50 | J103: =I103/H103 -> 1.482975e+19 | K103: 8.866800801e-32 | L103: 1.127802487e+31 | M103: 5.7836025e+23
B104: 79 | C104: 500 | D104: 39500 | E104: 19750000 | F104: 780125000000 | G104: 1.540746875e+19 | H104: 1.201975156e+31 | I104: 1.851939465e+50 | J104: =I104/H104 -> 1.540746875e+19 | K104: 8.319639513e-32 | L104: 1.201975156e+31 | M104: 6.085950156e+23
B105: 80 | C105: 500 | D105: 40000 | E105: 20000000 | F105: 800000000000 | G105: 1.6e+19 | H105: 1.28e+31 | I105: 2.048e+50 | J105: =I105/H105 -> 1.6e+19 | K105: 7.8125e-32 | L105: 1.28e+31 | M105: 6.4e+23
B106: 81 | C106: 500 | D106: 40500 | E106: 20250000 | F106: 820125000000 | G106: 1.660753125e+19 | H106: 1.362025157e+31 | I106: 2.261987535e+50 | J106: =I106/H106 -> 1.660753125e+19 | K106: 7.342008296e-32 | L106: 1.362025157e+31 | M106: 6.726050156e+23
B107: 82 | C107: 500 | D107: 41000 | E107: 20500000 | F107: 840500000000 | G107: 1.723025e+19 | H107: 1.448202512e+31 | I107: 2.495289134e+50 | J107: =I107/H107 -> 1.723025e+19 | K107: 6.905111622e-32 | L107: 1.448202512e+31 | M107: 7.0644025e+23
B108: 83 | C108: 500 | D108: 41500 | E108: 20750000 | F108: 861125000000 | G108: 1.786834375e+19 | H108: 1.538687751e+31 | I108: 2.749380166e+50 | J108: =I108/H108 -> 1.786834375e+19 | K108: 6.499044392e-32 | L108: 1.538687751e+31 | M108: 7.415362656e+23
B109: 84 | C109: 500 | D109: 42000 | E109: 21000000 | F109: 882000000000 | G109: 1.8522e+19 | H109: 1.6336404e+31 | I109: 3.025828749e+50 | J109: =I109/H109 -> 1.8522e+19 | K109: 6.121298176e-32 | L109: 1.6336404e+31 | M109: 7.77924e+23
B110: 85 | C110: 500 | D110: 42500 | E110: 21250000 | F110: 903125000000 | G110: 1.919140625e+19 | H110: 1.733223877e+31 | I110: 3.326300354e+50 | J110: =I110/H110 -> 1.919140625e+19 | K110: 5.769595107e-32 | L110: 1.733223877e+31 | M110: 8.156347656e+23
B111: 86 | C111: 500 | D111: 43000 | E111: 21500000 | F111: 924500000000 | G111: 1.987675e+19 | H111: 1.837605537e+31 | I111: 3.652562587e+50 | J111: =I111/H111 -> 1.987675e+19 | K111: 5.441864315e-32 | L111: 1.837605537e+31 | M111: 8.5470025e+23
B112: 87 | C112: 500 | D112: 43500 | E112: 21750000 | F112: 946125000000 | G112: 2.057821875e+19 | H112: 1.946956721e+31 | I112: 4.006490131e+50 | J112: =I112/H112 -> 2.057821875e+19 | K112: 5.136221001e-32 | L112: 1.946956721e+31 | M112: 8.951525156e+23
B113: 88 | C113: 500 | D113: 44000 | E113: 22000000 | F113: 968000000000 | G113: 2.1296e+19 | H113: 2.0614528e+31 | I113: 4.390069883e+50 | J113: =I113/H113 -> 2.1296e+19 | K113: 4.850947836e-32 | L113: 2.0614528e+31 | M113: 9.37024e+23
B114: 89 | C114: 500 | D114: 44500 | E114: 22250000 | F114: 990125000000 | G114: 2.203028125e+19 | H114: 2.181273222e+31 | I114: 4.805406257e+50 | J114: =I114/H114 -> 2.203028125e+19 | K114: 4.584478413e-32 | L114: 2.181273222e+31 | M114: 9.803475156e+23
B115: 90 | C115: 500 | D115: 45000 | E115: 22500000 | F115: 1012500000000 | G115: 2.278125e+19 | H115: 2.306601562e+31 | I115: 5.254726685e+50 | J115: =I115/H115 -> 2.278125e+19 | K115: 4.335382479e-32 | L115: 2.306601562e+31 | M115: 1.02515625e+24
B116: 91 | C116: 500 | D116: 45500 | E116: 22750000 | F116: 1035125000000 | G116: 2.354909375e+19 | H116: 2.437625567e+31 | I116: 5.7403873e+50 | J116: =I116/H116 -> 2.354909375e+19 | K116: 4.102352772e-32 | L116: 2.437625567e+31 | M116: 1.071483766e+24
B117: 92 | C117: 500 | D117: 46000 | E117: 23000000 | F117: 1058000000000 | G117: 2.4334e+19 | H117: 2.5745372e+31 | I117: 6.264878822e+50 | J117: =I117/H117 -> 2.4334e+19 | K117: 3.884193245e-32 | L117: 2.5745372e+31 | M117: 1.119364e+24
B118: 93 | C118: 500 | D118: 46500 | E118: 23250000 | F118: 1081125000000 | G118: 2.513615625e+19 | H118: 2.717532693e+31 | I118: 6.830832638e+50 | J118: =I118/H118 -> 2.513615625e+19 | K118: 3.679808536e-32 | L118: 2.717532693e+31 | M118: 1.168831266e+24
B119: 94 | C119: 500 | D119: 47000 | E119: 23500000 | F119: 1104500000000 | G119: 2.595575e+19 | H119: 2.866812587e+31 | I119: 7.441027082e+50 | J119: =I119/H119 -> 2.595575e+19 | K119: 3.488194535e-32 | L119: 2.866812587e+31 | M119: 1.21992025e+24
B120: 95 | C120: 500 | D120: 47500 | E120: 23750000 | F120: 1128125000000 | G120: 2.679296875e+19 | H120: 3.022581787e+31 | I120: 8.098393937e+50 | J120: =I120/H120 -> 2.679296875e+19 | K120: 3.308429913e-32 | L120: 3.022581787e+31 | M120: 1.272666016e+24
B121: 96 | C121: 500 | D121: 48000 | E121: 24000000 | F121: 1152000000000 | G121: 2.7648e+19 | H121: 3.1850496e+31 | I121: 8.806025134e+50 | J121: =I121/H121 -> 2.7648e+19 | K121: 3.139668531e-32 | L121: 3.1850496e+31 | M121: 1.327104e+24
B122: 97 | C122: 500 | D122: 48500 | E122: 24250000 | F122: 1176125000000 | G122: 2.852103125e+19 | H122: 3.354429788e+31 | I122: 9.567179681e+50 | J122: =I122/H122 -> 2.852103125e+19 | K122: 2.981132601e-32 | L122: 3.354429788e+31 | M122: 1.383270016e+24
B123: 98 | C123: 500 | D123: 49000 | E123: 24500000 | F123: 1200500000000 | G123: 2.941225e+19 | H123: 3.530940613e+31 | I123: 1.03852908e+51 | J123: =I123/H123 -> 2.941225e+19 | K123: 2.83210654e-32 | L123: 3.530940613e+31 | M123: 1.44120025e+24
B124: 99 | C124: 500 | D124: 49500 | E124: 24750000 | F124: 1225125000000 | G124: 3.032184375e+19 | H124: 3.714804882e+31 | I124: 1.126397332e+51 | J124: =I124/H124 -> 3.032184375e+19 | K124: 2.691931425e-32 | L124: 3.714804882e+31 | M124: 1.500931266e+24
B125: 100 | C125: 500 | D125: 50000 | E125: 25000000 | F125: 1250000000000 | G125: 3.125e+19 | H125: 3.90625e+31 | I125: 1.220703125e+51 | J125: =I125/H125 -> 3.125e+19 | K125: 2.56e-32 | L125: 3.90625e+31 | M125: 1.5625e+24
B126: 101 | C126: 500 | D126: 50500 | E126: 25250000 | F126: 1275125000000 | G126: 3.219690625e+19 | H126: 4.105508008e+31 | I126: 1.321846564e+51 | J126: =I126/H126 -> 3.219690625e+19 | K126: 2.43575216e-32 | L126: 4.105508008e+31 | M126: 1.625943766e+24
B127: 102 | C127: 500 | D127: 51000 | E127: 25500000 | F127: 1300500000000 | G127: 3.316275e+19 | H127: 4.312815638e+31 | I127: 1.430248268e+51 | J127: =I127/H127 -> 3.316275e+19 | K127: 2.318670873e-32 | L127: 4.312815638e+31 | M127: 1.69130025e+24
B128: 103 | C128: 500 | D128: 51500 | E128: 25750000 | F128: 1326125000000 | G128: 3.414771875e+19 | H128: 4.528414353e+31 | I128: 1.546350197e+51 | J128: =I128/H128 -> 3.414771875e+19 | K128: 2.208278488e-32 | L128: 4.528414353e+31 | M128: 1.758607516e+24
B129: 104 | C129: 500 | D129: 52000 | E129: 26000000 | F129: 1352000000000 | G129: 3.5152e+19 | H129: 4.7525504e+31 | I129: 1.670616517e+51 | J129: =I129/H129 -> 3.5152e+19 | K129: 2.104133393e-32 | L129: 4.7525504e+31 | M129: 1.827904e+24
B130: 105 | C130: 500 | D130: 52500 | E130: 26250000 | F130: 1378125000000 | G130: 3.617578125e+19 | H130: 4.985474854e+31 | I130: 1.803534477e+51 | J130: =I130/H130 -> 3.617578125e+19 | K130: 2.005826986e-32 | L130: 4.985474854e+31 | M130: 1.899228516e+24
B131: 106 | C131: 500 | D131: 53000 | E131: 26500000 | F131: 1404500000000 | G131: 3.721925e+19 | H131: 5.227443663e+31 | I131: 1.945615325e+51 | J131: =I131/H131 -> 3.721925e+19 | K131: 1.912980923e-32 | L131: 5.227443663e+31 | M131: 1.97262025e+24
B132: 107 | C132: 500 | D132: 53500 | E132: 26750000 | F132: 1431125000000 | G132: 3.828259375e+19 | H132: 5.478717698e+31 | I132: 2.097395239e+51 | J132: =I132/H132 -> 3.828259375e+19 | K132: 1.825244619e-32 | L132: 5.478717698e+31 | M132: 2.048118766e+24
B133: 108 | C133: 500 | D133: 54000 | E133: 27000000 | F133: 1458000000000 | G133: 3.9366e+19 | H133: 5.7395628e+31 | I133: 2.259436292e+51 | J133: =I133/H133 -> 3.9366e+19 | K133: 1.742292984e-32 | L133: 5.7395628e+31 | M133: 2.125764e+24
B134: 109 | C134: 500 | D134: 54500 | E134: 27250000 | F134: 1485125000000 | G134: 4.046965625e+19 | H134: 6.010249824e+31 | I134: 2.432327443e+51 | J134: =I134/H134 -> 4.046965625e+19 | K134: 1.663824349e-32 | L134: 6.010249824e+31 | M134: 2.205596266e+24
B135: 110 | C135: 500 | D135: 55000 | E135: 27500000 | F135: 1512500000000 | G135: 4.159375e+19 | H135: 6.291054688e+31 | I135: 2.616685559e+51 | J135: =I135/H135 -> 4.159375e+19 | K135: 1.589558587e-32 | L135: 6.291054688e+31 | M135: 2.28765625e+24
B136: 111 | C136: 500 | D136: 55500 | E136: 27750000 | F136: 1540125000000 | G136: 4.273846875e+19 | H136: 6.582258418e+31 | I136: 2.813156457e+51 | J136: =I136/H136 -> 4.273846875e+19 | K136: 1.5192354e-32 | L136: 6.582258418e+31 | M136: 2.371985016e+24
B137: 112 | C137: 500 | D137: 56000 | E137: 28000000 | F137: 1568000000000 | G137: 4.3904e+19 | H137: 6.8841472e+31 | I137: 3.022415987e+51 | J137: =I137/H137 -> 4.3904e+19 | K137: 1.452612751e-32 | L137: 6.8841472e+31 | M137: 2.458624e+24
B138: 113 | C138: 500 | D138: 56500 | E138: 28250000 | F138: 1596125000000 | G138: 4.509053125e+19 | H138: 7.197012419e+31 | I138: 3.245171134e+51 | J138: =I138/H138 -> 4.509053125e+19 | K138: 1.389465436e-32 | L138: 7.197012419e+31 | M138: 2.547615016e+24
B139: 114 | C139: 500 | D139: 57000 | E139: 28500000 | F139: 1624500000000 | G139: 4.629825e+19 | H139: 7.521150712e+31 | I139: 3.48216116e+51 | J139: =I139/H139 -> 4.629825e+19 | K139: 1.329583781e-32 | L139: 7.521150712e+31 | M139: 2.63900025e+24
B140: 115 | C140: 500 | D140: 57500 | E140: 28750000 | F140: 1653125000000 | G140: 4.752734375e+19 | H140: 7.856864014e+31 | I140: 3.734158768e+51 | J140: =I140/H140 -> 4.752734375e+19 | K140: 1.272772442e-32 | L140: 7.856864014e+31 | M140: 2.732822266e+24
B141: 116 | C141: 500 | D141: 58000 | E141: 29000000 | F141: 1682000000000 | G141: 4.8778e+19 | H141: 8.2044596e+31 | I141: 4.001971304e+51 | J141: =I141/H141 -> 4.8778e+19 | K141: 1.218849319e-32 | L141: 8.2044596e+31 | M141: 2.829124e+24
B142: 117 | C142: 500 | D142: 58500 | E142: 29250000 | F142: 1711125000000 | G142: 5.005040625e+19 | H142: 8.564250139e+31 | I142: 4.286441987e+51 | J142: =I142/H142 -> 5.005040625e+19 | K142: 1.16764455e-32 | L142: 8.564250139e+31 | M142: 2.927948766e+24
B143: 118 | C143: 500 | D143: 59000 | E143: 29500000 | F143: 1740500000000 | G143: 5.134475e+19 | H143: 8.936553738e+31 | I143: 4.588451175e+51 | J143: =I143/H143 -> 5.134475e+19 | K143: 1.118999594e-32 | L143: 8.936553738e+31 | M143: 3.02934025e+24
B144: 119 | C144: 500 | D144: 59500 | E144: 29750000 | F144: 1770125000000 | G144: 5.266121875e+19 | H144: 9.321693984e+31 | I144: 4.90891766e+51 | J144: =I144/H144 -> 5.266121875e+19 | K144: 1.07276639e-32 | L144: 9.321693984e+31 | M144: 3.133342516e+24
B145: 120 | C145: 500 | D145: 60000 | E145: 30000000 | F145: 1800000000000 | G145: 5.4e+19 | H145: 9.72e+31 | I145: 5.2488e+51 | J145: =I145/H145 -> 5.4e+19 | K145: 1.028806584e-32 | L145: 9.72e+31 | M145: 3.24e+24
B146: 121 | C146: 500 | D146: 60500 | E146: 30250000 | F146: 1830125000000 | G146: 5.536128125e+19 | H146: 1.013180648e+32 | I146: 5.609097884e+51 | J146: =I146/H146 -> 5.536128125e+19 | K146: 9.869908209e-33 | L146: 1.013180648e+32 | M146: 3.349357516e+24
B147: 122 | C147: 500 | D147: 61000 | E147: 30500000 | F147: 1860500000000 | G147: 5.674525e+19 | H147: 1.055745376e+32 | I147: 5.990853531e+51 | J147: =I147/H147 -> 5.674525e+19 | K147: 9.471980863e-33 | L147: 1.055745376e+32 | M147: 3.46146025e+24
B148: 123 | C148: 500 | D148: 61500 | E148: 30750000 | F148: 1891125000000 | G148: 5.815209375e+19 | H148: 1.099728783e+32 | I148: 6.395153128e+51 | J148: =I148/H148 -> 5.815209375e+19 | K148: 9.093151107e-33 | L148: 1.099728783e+32 | M148: 3.576353766e+24
B149: 124 | C149: 500 | D149: 62000 | E149: 31000000 | F149: 1922000000000 | G149: 5.9582e+19 | H149: 1.14516604e+32 | I149: 6.8231283e+51 | J149: =I149/H149 -> 5.9582e+19 | K149: 8.732358148e-33 | L149: 1.14516604e+32 | M149: 3.694084e+24
B150: 125 | C150: 500 | D150: 62500 | E150: 31250000 | F150: 1953125000000 | G150: 6.103515625e+19 | H150: 1.192092896e+32 | I150: 7.275957614e+51 | J150: =I150/H150 -> 6.103515625e+19 | K150: 8.388608e-33 | L150: 1.192092896e+32 | M150: 3.814697266e+24
B151: 126 | C151: 500 | D151: 63000 | E151: 31500000 | F151: 1984500000000 | G151: 6.251175e+19 | H151: 1.240545679e+32 | I151: 7.754868133e+51 | J151: =I151/H151 -> 6.251175e+19 | K151: 8.060968791e-33 | L151: 1.240545679e+32 | M151: 3.93824025e+24
B152: 127 | C152: 500 | D152: 63500 | E152: 31750000 | F152: 2016125000000 | G152: 6.401196875e+19 | H152: 1.290561305e+32 | I152: 8.261136992e+51 | J152: =I152/H152 -> 6.401196875e+19 | K152: 7.748566427e-33 | L152: 1.290561305e+32 | M152: 4.064760016e+24
B153: 128 | C153: 500 | D153: 64000 | E153: 32000000 | F153: 2048000000000 | G153: 6.5536e+19 | H153: 1.34217728e+32 | I153: 8.796093022e+51 | J153: =I153/H153 -> 6.5536e+19 | K153: 7.450580597e-33 | L153: 1.34217728e+32 | M153: 4.194304e+24
B154: 129 | C154: 500 | D154: 64500 | E154: 32250000 | F154: 2080125000000 | G154: 6.708403125e+19 | H154: 1.395431705e+32 | I154: 9.361118411e+51 | J154: =I154/H154 -> 6.708403125e+19 | K154: 7.166241074e-33 | L154: 1.395431705e+32 | M154: 4.326920016e+24
B155: 130 | C155: 500 | D155: =C155*B155 -> 65000 | E155: =D155*C155 -> 32500000 | F155: =E155*D155 -> 2112500000000 | G155: =F155*E155 -> 6.865625e+19 | H155: =G155*F155 -> 1.450363281e+32 | I155: =H155*G155 -> 9.957650403e+51 | J155: =I155/H155 -> 6.865625e+19 | K155: 6.894824303e-33 | L155: =I155/G155 -> 1.450363281e+32 | M155: =L155/E155 -> 4.46265625e+24
B156: 131 | C156: 500 | D156: 65500 | E156: 32750000 | F156: 2145125000000 | G156: 7.025284375e+19 | H156: 1.507011314e+32 | I156: 1.058718304e+52 | J156: =I156/H156 -> 7.025284375e+19 | K156: 6.635650246e-33 | L156: 1.507011314e+32 | M156: 4.601561266e+24
B157: 132 | C157: 500 | D157: 66000 | E157: 33000000 | F157: 2178000000000 | G157: 7.1874e+19 | H157: 1.56541572e+32 | I157: 1.125126895e+52 | J157: =I157/H157 -> 7.1874e+19 | K157: 6.388079455e-33 | L157: 1.56541572e+32 | M157: 4.743684e+24
B158: 133 | C158: 500 | D158: 66500 | E158: 33250000 | F158: 2211125000000 | G158: 7.351990625e+19 | H158: 1.625617027e+32 | I158: 1.195152114e+52 | J158: =I158/H158 -> 7.351990625e+19 | K158: 6.15151037e-33 | L158: 1.625617027e+32 | M158: 4.889073766e+24
B159: 134 | C159: 500 | D159: 67000 | E159: 33500000 | F159: 2244500000000 | G159: 7.519075e+19 | H159: 1.687656384e+32 | I159: 1.268961492e+52 | J159: =I159/H159 -> 7.519075e+19 | K159: 5.92537681e-33 | L159: 1.687656384e+32 | M159: 5.03778025e+24
B160: 135 | C160: 500 | D160: 67500 | E160: 33750000 | F160: 2278125000000 | G160: 7.688671875e+19 | H160: 1.751575562e+32 | I160: 1.346728976e+52 | J160: =I160/H160 -> 7.688671875e+19 | K160: 5.709145651e-33 | L160: 1.751575562e+32 | M160: 5.189853516e+24
B161: 136 | C161: 500 | D161: 68000 | E161: 34000000 | F161: 2312000000000 | G161: 7.8608e+19 | H161: 1.81741696e+32 | I161: 1.428635124e+52 | J161: =I161/H161 -> 7.8608e+19 | K161: 5.50231467e-33 | L161: 1.81741696e+32 | M161: 5.345344e+24
B162: 137 | C162: 500 | D162: 68500 | E162: 34250000 | F162: 2346125000000 | G162: 8.035478125e+19 | H162: 1.885223612e+32 | I162: 1.514867309e+52 | J162: =I162/H162 -> 8.035478125e+19 | K162: 5.304410542e-33 | L162: 1.885223612e+32 | M162: 5.504302516e+24
B163: 138 | C163: 500 | D163: 69000 | E163: 34500000 | F163: 2380500000000 | G163: 8.212725e+19 | H163: 1.955039186e+32 | I163: 1.60561992e+52 | J163: =I163/H163 -> 8.212725e+19 | K163: 5.114986989e-33 | L163: 1.955039186e+32 | M163: 5.66678025e+24
B164: 139 | C164: 500 | D164: 69500 | E164: 34750000 | F164: 2415125000000 | G164: 8.392559375e+19 | H164: 2.026907996e+32 | I164: 1.70109457e+52 | J164: =I164/H164 -> 8.392559375e+19 | K164: 4.933623045e-33 | L164: 2.026907996e+32 | M164: 5.832828766e+24
B165: 140 | C165: 500 | D165: 70000 | E165: 35000000 | F165: 2450000000000 | G165: 8.575e+19 | H165: 2.100875e+32 | I165: 1.801500312e+52 | J165: =I165/H165 -> 8.575e+19 | K165: 4.759921461e-33 | L165: 2.100875e+32 | M165: 6.0025e+24
B166: 141 | C166: 500 | D166: 70500 | E166: 35250000 | F166: 2485125000000 | G166: 8.760065625e+19 | H166: 2.176985809e+32 | I166: 1.907053855e+52 | J166: =I166/H166 -> 8.760065625e+19 | K166: 4.593507206e-33 | L166: 2.176985809e+32 | M166: 6.175846266e+24
B167: 142 | C167: 500 | D167: 71000 | E167: 35500000 | F167: 2520500000000 | G167: 8.947775e+19 | H167: 2.255286689e+32 | I167: 2.017979785e+52 | J167: =I167/H167 -> 8.947775e+19 | K167: 4.434026082e-33 | L167: 2.255286689e+32 | M167: 6.35292025e+24
B168: 143 | C168: 500 | D168: 71500 | E168: 35750000 | F168: 2556125000000 | G168: 9.138146875e+19 | H168: 2.335824568e+32 | I168: 2.134510798e+52 | J168: =I168/H168 -> 9.138146875e+19 | K168: 4.281143429e-33 | L168: 2.335824568e+32 | M168: 6.533775016e+24
B169: 144 | C169: 500 | D169: 72000 | E169: 36000000 | F169: 2592000000000 | G169: 9.3312e+19 | H169: 2.41864704e+32 | I169: 2.256887926e+52 | J169: =I169/H169 -> 9.3312e+19 | K169: 4.134542922e-33 | L169: 2.41864704e+32 | M169: 6.718464e+24
B170: 145 | C170: 500 | D170: 72500 | E170: 36250000 | F170: 2628125000000 | G170: 9.526953125e+19 | H170: 2.503802368e+32 | I170: 2.38536078e+52 | J170: =I170/H170 -> 9.526953125e+19 | K170: 3.99392545e-33 | L170: 2.503802368e+32 | M170: 6.907041016e+24
B171: 146 | C171: 500 | D171: 73000 | E171: 36500000 | F171: 2664500000000 | G171: 9.725425e+19 | H171: 2.591339491e+32 | I171: 2.520187787e+52 | J171: =I171/H171 -> 9.725425e+19 | K171: 3.859008067e-33 | L171: 2.591339491e+32 | M171: 7.09956025e+24
B172: 147 | C172: 500 | D172: 73500 | E172: 36750000 | F172: 2701125000000 | G172: 9.926634375e+19 | H172: 2.681308028e+32 | I172: 2.661636444e+52 | J172: =I172/H172 -> 9.926634375e+19 | K172: 3.729523015e-33 | L172: 2.681308028e+32 | M172: 7.296076266e+24
B173: 148 | C173: 500 | D173: 74000 | E173: 37000000 | F173: 2738000000000 | G173: 1.01306e+20 | H173: 2.77375828e+32 | I173: 2.809983563e+52 | J173: =I173/H173 -> 1.01306e+20 | K173: 3.605216818e-33 | L173: 2.77375828e+32 | M173: 7.496644e+24
B174: 149 | C174: 500 | D174: 74500 | E174: 37250000 | F174: 2775125000000 | G174: 1.033734063e+20 | H174: 2.86874124e+32 | I174: 2.965515536e+52 | J174: =I174/H174 -> 1.033734063e+20 | K174: 3.485849424e-33 | L174: 2.86874124e+32 | M174: 7.701318766e+24
B175: 150 | C175: 500 | D175: 75000 | E175: 37500000 | F175: 2812500000000 | G175: 1.0546875e+20 | H175: 2.966308594e+32 | I175: 3.128528595e+52 | J175: =I175/H175 -> 1.0546875e+20 | K175: 3.371193416e-33 | L175: 2.966308594e+32 | M175: 7.91015625e+24
B176: 151 | C176: 500 | D176: 75500 | E176: 37750000 | F176: 2850125000000 | G176: 1.075922188e+20 | H176: 3.066512725e+32 | I176: 3.299329079e+52 | J176: =I176/H176 -> 1.075922188e+20 | K176: 3.261033264e-33 | L176: 3.066512725e+32 | M176: 8.123212516e+24
B177: 152 | C177: 500 | D177: 76000 | E177: 38000000 | F177: 2888000000000 | G177: 1.09744e+20 | H177: 3.16940672e+32 | I177: 3.478233711e+52 | J177: =I177/H177 -> 1.09744e+20 | K177: 3.155164636e-33 | L177: 3.16940672e+32 | M177: 8.340544e+24
B178: 153 | C178: 500 | D178: 76500 | E178: 38250000 | F178: 2926125000000 | G178: 1.119242812e+20 | H178: 3.275044375e+32 | I178: 3.665569877e+52 | J178: =I178/H178 -> 1.119242812e+20 | K178: 3.053393742e-33 | L178: 3.275044375e+32 | M178: 8.562207516e+24
B179: 154 | C179: 500 | D179: 77000 | E179: 38500000 | F179: 2964500000000 | G179: 1.1413325e+20 | H179: 3.383480196e+32 | I179: 3.861675911e+52 | J179: =I179/H179 -> 1.1413325e+20 | K179: 2.955536731e-33 | L179: 3.383480196e+32 | M179: 8.78826025e+24
B180: 155 | C180: 500 | D180: 77500 | E180: 38750000 | F180: 3003125000000 | G180: 1.163710937e+20 | H180: 3.494769409e+32 | I180: 4.066901386e+52 | J180: =I180/H180 -> 1.163710937e+20 | K180: 2.861419118e-33 | L180: 3.494769409e+32 | M180: 9.018759766e+24
B181: 156 | C181: 500 | D181: 78000 | E181: 39000000 | F181: 3042000000000 | G181: 1.18638e+20 | H181: 3.60896796e+32 | I181: 4.281607408e+52 | J181: =I181/H181 -> 1.18638e+20 | K181: 2.77087525e-33 | L181: 3.60896796e+32 | M181: 9.253764e+24
B182: 157 | C182: 500 | D182: 78500 | E182: 39250000 | F182: 3081125000000 | G182: 1.209341562e+20 | H182: 3.726132522e+32 | I182: 4.506166926e+52 | J182: =I182/H182 -> 1.209341562e+20 | K182: 2.683747811e-33 | L182: 3.726132522e+32 | M182: 9.493331266e+24
B183: 158 | C183: 500 | D183: 79000 | E183: 39500000 | F183: 3120500000000 | G183: 1.2325975e+20 | H183: 3.846320499e+32 | I183: 4.740965031e+52 | J183: =I183/H183 -> 1.2325975e+20 | K183: 2.599887348e-33 | L183: 3.846320499e+32 | M183: 9.73752025e+24
B184: 159 | C184: 500 | D184: 79500 | E184: 39750000 | F184: 3160125000000 | G184: 1.256149687e+20 | H184: 3.969590031e+32 | I184: 4.986399277e+52 | J184: =I184/H184 -> 1.256149687e+20 | K184: 2.519151832e-33 | L184: 3.969590031e+32 | M184: 9.986390016e+24
B185: 160 | C185: 500 | D185: 80000 | E185: 40000000 | F185: 3200000000000 | G185: 1.28e+20 | H185: 4.096e+32 | I185: 5.24288e+52 | J185: =I185/H185 -> 1.28e+20 | K185: 2.44140625e-33 | L185: 4.096e+32 | M185: 1.024e+25
B186: 161 | C186: 500 | D186: 80500 | E186: 40250000 | F186: 3240125000000 | G186: 1.304150313e+20 | H186: 4.225610031e+32 | I186: 5.510830643e+52 | J186: =I186/H186 -> 1.304150313e+20 | K186: 2.366522212e-33 | L186: 4.225610031e+32 | M186: 1.049841002e+25
B187: 162 | C187: 500 | D187: 81000 | E187: 40500000 | F187: 3280500000000 | G187: 1.3286025e+20 | H187: 4.358480501e+32 | I187: 5.79068809e+52 | J187: =I187/H187 -> 1.3286025e+20 | K187: 2.294377593e-33 | L187: 4.358480501e+32 | M187: 1.076168025e+25
B188: 163 | C188: 500 | D188: 81500 | E188: 40750000 | F188: 3321125000000 | G188: 1.353358438e+20 | H188: 4.494672541e+32 | I188: 6.082903007e+52 | J188: =I188/H188 -> 1.353358438e+20 | K188: 2.224856185e-33 | L188: 4.494672541e+32 | M188: 1.102987127e+25
B189: 164 | C189: 500 | D189: 82000 | E189: 41000000 | F189: 3362000000000 | G189: 1.37842e+20 | H189: 4.63424804e+32 | I189: 6.387940183e+52 | J189: =I189/H189 -> 1.37842e+20 | K189: 2.157847382e-33 | L189: 4.63424804e+32 | M189: 1.1303044e+25
B190: 165 | C190: 500 | D190: 82500 | E190: 41250000 | F190: 3403125000000 | G190: 1.403789063e+20 | H190: 4.777269653e+32 | I190: 6.706278888e+52 | J190: =I190/H190 -> 1.403789063e+20 | K190: 2.093245876e-33 | L190: 4.777269653e+32 | M190: 1.158125977e+25
B191: 166 | C191: 500 | D191: 83000 | E191: 41500000 | F191: 3444500000000 | G191: 1.4294675e+20 | H191: 4.923800804e+32 | I191: 7.038413225e+52 | J191: =I191/H191 -> 1.4294675e+20 | K191: 2.030951372e-33 | L191: 4.923800804e+32 | M191: 1.186458025e+25
B192: 167 | C192: 500 | D192: 83500 | E192: 41750000 | F192: 3486125000000 | G192: 1.455457188e+20 | H192: 5.073905688e+32 | I192: 7.384852502e+52 | J192: =I192/H192 -> 1.455457188e+20 | K192: 1.970868324e-33 | L192: 5.073905688e+32 | M192: 1.215306752e+25
B193: 168 | C193: 500 | D193: 84000 | E193: 42000000 | F193: 3528000000000 | G193: 1.48176e+20 | H193: 5.22764928e+32 | I193: 7.746121597e+52 | J193: =I193/H193 -> 1.48176e+20 | K193: 1.91290568e-33 | L193: 5.22764928e+32 | M193: 1.2446784e+25
B194: 169 | C194: 500 | D194: 84500 | E194: 42250000 | F194: 3570125000000 | G194: 1.508377812e+20 | H194: 5.385097338e+32 | I194: 8.122761343e+52 | J194: =I194/H194 -> 1.508377812e+20 | K194: 1.856976647e-33 | L194: 5.385097338e+32 | M194: 1.274579252e+25
B195: 170 | C195: 500 | D195: 85000 | E195: 42500000 | F195: 3612500000000 | G195: 1.5353125e+20 | H195: 5.546316406e+32 | I195: 8.515328907e+52 | J195: =I195/H195 -> 1.5353125e+20 | K195: 1.802998471e-33 | L195: 5.546316406e+32 | M195: 1.305015625e+25
B196: 171 | C196: 500 | D196: 85500 | E196: 42750000 | F196: 3655125000000 | G196: 1.562565938e+20 | H196: 5.711373822e+32 | I196: 8.924398191e+52 | J196: =I196/H196 -> 1.562565938e+20 | K196: 1.750892222e-33 | L196: 5.711373822e+32 | M196: 1.335993877e+25
B197: 172 | C197: 500 | D197: 86000 | E197: 43000000 | F197: 3698000000000 | G197: 1.59014e+20 | H197: 5.88033772e+32 | I197: 9.350560222e+52 | J197: =I197/H197 -> 1.59014e+20 | K197: 1.700582599e-33 | L197: 5.88033772e+32 | M197: 1.3675204e+25
B198: 173 | C198: 500 | D198: 86500 | E198: 43250000 | F198: 3741125000000 | G198: 1.618036563e+20 | H198: 6.053277035e+32 | I198: 9.794423565e+52 | J198: =I198/H198 -> 1.618036563e+20 | K198: 1.651997743e-33 | L198: 6.053277035e+32 | M198: 1.399601627e+25
B199: 174 | C199: 500 | D199: 87000 | E199: 43500000 | F199: 3784500000000 | G199: 1.6462575e+20 | H199: 6.230261509e+32 | I199: 1.025661474e+53 | J199: =I199/H199 -> 1.6462575e+20 | K199: 1.605069063e-33 | L199: 6.230261509e+32 | M199: 1.432244025e+25
B200: 175 | C200: 500 | D200: 87500 | E200: 43750000 | F200: 3828125000000 | G200: 1.674804687e+20 | H200: 6.411361694e+32 | I200: 1.073777862e+53 | J200: =I200/H200 -> 1.674804687e+20 | K200: 1.559731064e-33 | L200: 6.411361694e+32 | M200: 1.465454102e+25
B201: 176 | C201: 500 | D201: 88000 | E201: 44000000 | F201: 3872000000000 | G201: 1.70368e+20 | H201: 6.59664896e+32 | I201: 1.12385789e+53 | J201: =I201/H201 -> 1.70368e+20 | K201: 1.515921199e-33 | L201: 6.59664896e+32 | M201: 1.4992384e+25
B202: 177 | C202: 500 | D202: 88500 | E202: 44250000 | F202: 3916125000000 | G202: 1.732885313e+20 | H202: 6.786195494e+32 | I202: 1.17596985e+53 | J202: =I202/H202 -> 1.732885313e+20 | K202: 1.473579712e-33 | L202: 6.786195494e+32 | M202: 1.533603502e+25
B203: 178 | C203: 500 | D203: 89000 | E203: 44500000 | F203: 3960500000000 | G203: 1.7624225e+20 | H203: 6.980074311e+32 | I203: 1.230184002e+53 | J203: =I203/H203 -> 1.7624225e+20 | K203: 1.432649504e-33 | L203: 6.980074311e+32 | M203: 1.568556025e+25
B204: 179 | C204: 500 | D204: 89500 | E204: 44750000 | F204: 4005125000000 | G204: 1.792293437e+20 | H204: 7.178359254e+32 | I204: 1.286572618e+53 | J204: =I204/H204 -> 1.792293437e+20 | K204: 1.393076001e-33 | L204: 7.178359254e+32 | M204: 1.604102627e+25
B205: 180 | C205: 500 | D205: 90000 | E205: 45000000 | F205: 4050000000000 | G205: 1.8225e+20 | H205: 7.381125e+32 | I205: 1.345210031e+53 | J205: =I205/H205 -> 1.8225e+20 | K205: 1.354807025e-33 | L205: 7.381125e+32 | M205: 1.64025e+25
B206: 181 | C206: 500 | D206: 90500 | E206: 45250000 | F206: 4095125000000 | G206: 1.853044062e+20 | H206: 7.588447066e+32 | I206: 1.406172678e+53 | J206: =I206/H206 -> 1.853044062e+20 | K206: 1.31779268e-33 | L206: 7.588447066e+32 | M206: 1.677004877e+25
B207: 182 | C207: 500 | D207: 91000 | E207: 45500000 | F207: 4140500000000 | G207: 1.8839275e+20 | H207: 7.800401814e+32 | I207: 1.469539149e+53 | J207: =I207/H207 -> 1.8839275e+20 | K207: 1.281985241e-33 | L207: 7.800401814e+32 | M207: 1.714374025e+25
... 4293 more rows

Sheet Sheet2
